Cogmind - Beta 11.1 @@@ ROGUE MODE // 2022.08.18 @ 21:53:30 Player: eldritch Result: Self-destructed Performance ------------- Evolutions (2) 1000 Regions Visited (6) 1200 Robots Destroyed (34) 170 Value Destroyed (710) 710 Prototype IDs (27) 540 Alien Tech Used (0) 0 Bonus (300) 300 TOTAL SCORE: 3920 Bonus ------- Aligned with FarCom 300 Cogmind --------- Core Integrity 519/550 Matter 164/300 Energy 265/265 System Corruption 6% Temperature Cool (0) Movement Treading (163) Location -8/Storage Parts ------- > --- POWER (1) -------- Improved Ion Engine > --- PROPULSION (3) --- Light Treads Light Treads Armored Treads > --- UTILITY (4) ------ High-capacity Storage Unit Machine Analyzer Transport Network Coupler > --- WEAPON (3) ------- Enhanced Autogun Enhanced Autogun Improved Grenade Launcher > --- INVENTORY (20) --- Light Nuclear Core Light Treads Large Storage Unit High-capacity Matter Pod (94) Advanced Weight Redist. System Improved Signal Interpreter Advanced Targeting Computer Chronowheel EM Pulse Cannon EM Pulse Cannon Enhanced Autogun Enhanced Autogun Enhanced Autogun Enhanced Autogun Heavy Mace Shock Maul Peak State ------------ > --- POWER ------------ Improved Ion Engine > --- PROPULSION ------- Light Treads Light Treads Armored Treads > --- UTILITY ---------- High-capacity Storage Unit High-capacity Matter Pod Machine Analyzer Medium Armor Plating > --- WEAPON ----------- Enhanced Autogun Enhanced Autogun Enhanced Autogun > --- INVENTORY -------- Light Nuclear Core Light Treads Large Storage Unit Advanced Weight Redist. System Improved Signal Interpreter Transport Network Coupler Advanced Targeting Computer Chronowheel EM Pulse Cannon EM Pulse Cannon Enhanced Autogun Improved Grenade Launcher Heavy Mace Shock Maul [Rating: 31] Favorites ----------- Power Ion Engine Engine Ion Engine Propulsion Light Treads Treads Light Treads Leg Aluminum Leg Utility Heat Sink Device Heat Sink Storage High-capacity Storage Unit Processor Machine Analyzer Protection Medium Armor Plating Weapon Beam Rifle Energy Gun Beam Rifle Ballistic Gun Enhanced Autogun Launcher Improved Grenade Launcher Impact Weapon Shock Maul Build | -11 -10 -10 -10 -9 -8 -8 ------- Run | Scr Mat Min Exi Min Mat Sto Slots Evolved 4 | . . . . . 4 . Power . | . . . . . . . Propulsion 1 | . . . . . 1 . Utility 2 | . . . . . 2 . Weapon 1 | . . . . . 1 . Parts Attached 39 | . 13 4 1 3 8 10 Power 3 | . 2 . . . 1 . Engine 3 | . 2 . . . 1 . Core . | . . . . . . . Reactor . | . . . . . . . Propulsion 8 | . 5 1 . . 2 . Treads 5 | . 2 1 . . 2 . Leg 3 | . 3 . . . . . Wheel . | . . . . . . . Hover . | . . . . . . . Flight . | . . . . . . . Utility 11 | . 4 . 1 . 3 3 Device 3 | . 3 . . . . . Storage 5 | . 1 . 1 . 1 2 Processor 2 | . . . . . 1 1 Hackware . | . . . . . . . Protection 1 | . . . . . 1 . Artifact . | . . . . . . . Weapon 17 | . 2 3 . 3 2 7 Energy Gun 7 | . 1 1 . 2 2 1 Energy Cannon . | . . . . . . . Ballistic Gun 5 | . 1 . . . . 4 Ballistic Cannon . | . . . . . . . Launcher 4 | . . 2 . 1 . 1 Special Weapon . | . . . . . . . Impact Weapon 1 | . . . . . . 1 Slashing Weapon . | . . . . . . . Piercing Weapon . | . . . . . . . Special Melee Weapon . | . . . . . . . Unidentified Prototypes 1 | . . . . . . 1 Corrupted Parts 2 | . . 1 . . . 1 System Corruption 8 | . . 3 . . . 5 Parts Lost 1 | . . . . . . 1 Power . | . . . . . . . Propulsion . | . . . . . . . Utility 1 | . . . . . . 1 Weapon . | . . . . . . . Highest Loss Streak 1 | . . . . . . 1 To Critical Strikes . | . . . . . . . Average Slot Usage (%) 87 | . 96 99 71 98 96 96 Engine 12 | . 14 14 14 14 9 9 Treads 23 | . 1 28 28 28 23 27 Leg 3 | . 26 . . . . . Device 12 | . 11 14 14 14 9 1 Storage 13 | . 14 14 14 14 9 13 Processor 2 | . . . . . 9 11 Protection 1 | . . . . . 9 7 Energy Gun 10 | . 15 17 . 16 24 4 Ballistic Gun 3 | . 12 . . . . 19 Launcher 3 | . . 9 . 10 2 1 Naked Turns . | . . . . . . . Heaviest Build 67 | 12 21 25 46 55 65 67 Greatest Support 60 | 20 40 40 40 40 60 60 Greatest Overweight (x) 1 | . 1 . 1 1 1 1 Average Overweight (x) . | . . . . 1 . . Largest Inventory Capacity 20 | . 10 10 20 20 20 20 Average Capacity 16 | . 8 10 18 20 15 18 Most Carried 16 | . 10 10 12 12 15 16 Average Carried 10 | . 8 9 10 10 10 15 Final Capacity 20 | 8 10 10 20 20 15 20 Final Carried 16 | 6 10 9 12 10 15 16 Class Distribution -------------------- 81% | Mutant 11% | Skirmisher 5% | Scavenger-Skirmisher Dominant Class ---------------- Mutant | -10/Materials Mutant | -10/Mines Mutant | -10/Exiles Mutant | -9/Mines Skirmisher | -8/Materials Skirmisher | -8/Storage Resources | -11 -10 -10 -10 -9 -8 -8 ----------- Run | Scr Mat Min Exi Min Mat Sto Matter Collected 915 | 200 297 47 184 58 129 . Remotely . | . . . . . . . Salvage Created 852 | . 397 35 . 33 162 225 Parts 74 | . 27 8 . 14 9 16 Haulers Intercepted 3 | . 2 . . . 1 . Recyclers Shooed 1 | . 1 . . . . . Parts Field Recycled . | . . . . . . . Retrieved Matter . | . . . . . . . Parts Self-Destructed . | . . . . . . . Prevented . | . . . . . . . Kills | -11 -10 -10 -10 -9 -8 -8 ------- Run | Scr Mat Min Exi Min Mat Sto Combat Hostiles Destroyed 26 | . 7 6 . 7 2 4 Guns 13 | . 7 1 . 1 2 2 AOE 13 | . . 5 . 6 . 2 Classes Destroyed 7 | . 3 1 . 1 1 1 Worker 3 | . . . . 1 . 2 Hauler 3 | . 2 . . . 1 . Recycler 1 | . . . . . . 1 Watcher 1 | . 1 . . . . . Swarmer 13 | . . 6 . 7 . . Grunt 11 | . 7 . . . . 4 Sentry 2 | . . . . . 2 . Best Kill Streak 7 | . 3 3 . 5 2 7 Combat Bots Only 4 | . 2 3 . 4 1 4 Max Kills in Single Turn 5 | . 1 2 . 5 1 2 Gunslinging . | . . . . . . . Exploded 4 | . . 2 . 4 . 1 Melee . | . . . . . . . Uniques/NPCs Destroyed . | . . . . . . . Combat | -11 -10 -10 -10 -9 -8 -8 -------- Run | Scr Mat Min Exi Min Mat Sto Damage Taken 972 | . 256 94 . 168 145 309 Core 156 | . 82 20 . 23 31 . Absorbed by Shields . | . . . . . . . Core Remaining (%) 75 | 100 . . . 50 . . Volleys Fired 56 | . 29 4 . 5 7 11 Largest 3 | . 2 2 . 2 3 3 Hottest 168 | . 76 92 . 92 168 75 Shots Fired 120 | . 58 6 . 10 21 25 Gun 109 | . 58 3 . 5 21 22 Cannon . | . . . . . . . Launcher 11 | . . 3 . 5 . 3 Special . | . . . . . . . Kinetic 50 | . 29 . . . . 21 Thermal 59 | . 29 3 . 5 21 1 Explosive 11 | . . 3 . 5 . 3 Electromagnetic . | . . . . . . . Robot Hit Streak 13 | . 13 3 . 2 7 7 Robot Miss Streak 5 | . 2 2 . 2 1 5 Penetration Max . | . . . . . . . Secondary Targets . | . . . . . . . Shots Hit Robots 80 | . 44 3 . 5 17 11 Core Hits 52 | . 19 8 . 6 5 14 Critical Kills . | . . . . . . . Critical Parts Destroyed . | . . . . . . . Critical Strikes 4 | . 2 1 . 1 . . Burn 4 | . 2 1 . 1 . . Melee Attacks . | . . . . . . . Impact . | . . . . . . . Slashing . | . . . . . . . Piercing . | . . . . . . . Sneak Attacks . | . . . . . . . Combat Hostiles . | . . . . . . . Follow-up Attacks . | . . . . . . . Damage Inflicted 2168 | . 581 289 . 512 248 538 Guns 1112 | . 581 14 . 43 248 226 Cannons . | . . . . . . . Explosions 1056 | . . 275 . 469 . 312 Melee . | . . . . . . . Ramming . | . . . . . . . Kinetic 535 | . 309 . . . . 226 Thermal 577 | . 272 14 . 43 248 . Explosive 1056 | . . 275 . 469 . 312 Electromagnetic . | . . . . . . . Impact . | . . . . . . . Slashing . | . . . . . . . Piercing . | . . . . . . . Highest Corruption 6 | . . 3 3 3 . 6 Average Corruption 3 | . . 3 3 3 . 5 Corruption Purged . | . . . . . . . Corruption Blocked . | . . . . . . . Effects 29 | . . 4 14 5 . 6 Message Errors 5 | . . 1 3 1 . . Matter Fused 10 | . . 2 3 2 . 3 Heat Flow Errors 4 | . . 1 1 1 . 1 Energy Discharges 4 | . . . 3 . . 1 Data Loss (minor) 4 | . . . 3 1 . . Misfires 1 | . . . . . . 1 Alerts 1 | . . . 1 . . . Overload Shots . | . . . . . . . Overflow Damage 24 | . . 3 . 21 . . Projectiles . | . . . . . . . Explosions 24 | . . 3 . 21 . . Melee . | . . . . . . . Knockbacks . | . . . . . . . Impact . | . . . . . . . Kinetic . | . . . . . . . Secondary . | . . . . . . . Self-Inflicted Damage 66 | . . . . 66 . . Shots 2 | . . . . 2 . . Rammed . | . . . . . . . Targets Rammed . | . . . . . . . Kicked . | . . . . . . . Crushed . | . . . . . . . Highest Temperature 253 | . 135 176 253 205 174 146 Average Temperature 76 | . 60 89 137 102 77 69 Received Heat Transfer 321 | . 141 . . . 45 135 Siege Activations . | . . . . . . . Robots Corrupted . | . . . . . . . Combat Hostiles . | . . . . . . . Parts Fried . | . . . . . . . Impact Corruptions . | . . . . . . . Robots Melted 1 | . . . . . 1 . Combat Hostiles . | . . . . . . . Parts Melted 7 | . 3 1 . . 3 . Heat Transferred 1813 | . 888 111 . 185 629 . Parts Sabotaged . | . . . . . . . Parts Stolen . | . . . . . . . Parts Stripped . | . . . . . . . Power Chain Reactions . | . . . . . . . Missiles Intercepted . | . . . . . . . Alert | -11 -10 -10 -10 -9 -8 -8 ------- Run | Scr Mat Min Exi Min Mat Sto Peak Influence 257 | . 257 251 . 184 163 119 Initial 71 | . . 27 . . 71 . Average 99 | . 122 169 . 61 110 22 Maximum Alert Level 1 | . 1 1 . . . . Low Security (%) 92 | . 85 73 . 100 100 100 Level 1 7 | . 14 26 . . . . Level 2 . | . . . . . . . Level 3 . | . . . . . . . Level 4 . | . . . . . . . Level 5 . | . . . . . . . High Security . | . . . . . . . Max Security . | . . . . . . . Squads Dispatched 3 | . 2 . . . . 1 Investigation 1 | . 1 . . . . . Extermination . | . . . . . . . Reinforcement 2 | . 1 . . . . 1 Assault . | . . . . . . . Garrison . | . . . . . . . Intercept . | . . . . . . . Searches Triggered . | . . . . . . . Construction Impeded . | . . . . . . . Haulers Reinforced . | . . . . . . . Active Scanning Responses . | . . . . . . . Cargo Convoy Interrupts . | . . . . . . . Stealth | -11 -10 -10 -10 -9 -8 -8 --------- Run | Scr Mat Min Exi Min Mat Sto Distress Signals 8 | . 1 . . . 4 3 Communications Jammed . | . . . . . . . Distress Signals . | . . . . . . . Times Spotted 38 | . 11 6 . 7 7 7 Peak Tracking Total 5 | . 3 3 . 4 4 5 Tactical Retreats 1 | . 1 . . . . . Traps | -11 -10 -10 -10 -9 -8 -8 ------- Run | Scr Mat Min Exi Min Mat Sto Traps Triggered 3 | . 1 1 . . . 1 Indirectly . | . . . . . . . Trap Hack Attempts . | . . . . . . . Triggered . | . . . . . . . Disarmed . | . . . . . . . Reprogrammed . | . . . . . . . Reused . | . . . . . . . Traps Extracted . | . . . . . . . Installed . | . . . . . . . Triggered . | . . . . . . . Machines | -11 -10 -10 -10 -9 -8 -8 ---------- Run | Scr Mat Min Exi Min Mat Sto Machines Disabled 2 | . . 2 . . . . Max in Single Turn 1 | . . 1 . . . . Machines Sabotaged . | . . . . . . . Garrisons Compromised . | . . . . . . . Overloaded Fab Kills . | . . . . . . . Hacking | -11 -10 -10 -10 -9 -8 -8 --------- Run | Scr Mat Min Exi Min Mat Sto Machines Accessed 8 | . 2 1 2 1 2 . Terminals 5 | . 2 . . 1 2 . Fabricators . | . . . . . . . Repair Stations . | . . . . . . . Recycling Units . | . . . . . . . Scanalyzers . | . . . . . . . Garrison Access . | . . . . . . . Total Hacks 25 | . 10 1 5 1 8 . Successful 18 | . 6 1 5 . 6 . Failed 7 | . 4 . . 1 2 . Catastrophic 3 | . 2 . . 1 . . Database Lockouts . | . . . . . . . Manual 18 | . 10 . 1 1 6 . Terminals 19 | . 10 . . 1 8 . Fabricators . | . . . . . . . Repair Stations . | . . . . . . . Recycling Units . | . . . . . . . Scanalyzers . | . . . . . . . Garrison Access . | . . . . . . . Terminal Hacks 11 | . 2 1 5 . 3 . Record 4 | . . . 4 . . . Prototype ID Bank 1 | . . . . . 1 . Open Door 1 | . . 1 . . . . Branch Access Points 1 | . 1 . . . . . Terminal Index 2 | . 1 . . . 1 . Hauler Manifests 1 | . . . . . 1 . EX-Prototype ID Bank 1 | . . . 1 . . . Fabricator Hacks . | . . . . . . . Repair Station Hacks . | . . . . . . . Recycling Unit Hacks . | . . . . . . . Scanalyzer . | . . . . . . . Garrison Access Hacks . | . . . . . . . Unauthorized Hacks 7 | . 4 . . . 3 . Terminals 7 | . 4 . . . 3 . Track 4 | . 2 . . . 2 . Botnet 3 | . 2 . . . 1 . Fabricators . | . . . . . . . Repair Stations . | . . . . . . . Recycling Units . | . . . . . . . Scanalyzers . | . . . . . . . Garrison Access . | . . . . . . . Data Cores Recovered . | . . . . . . . Used . | . . . . . . . Hacking Detections 5 | . 2 . . 1 2 . Full Trace Events . | . . . . . . . Feedback Events . | . . . . . . . Feedback Blocked . | . . . . . . . Robot Schematics Acquired . | . . . . . . . Robots Built . | . . . . . . . Authchips . | . . . . . . . Time . | . . . . . . . Total Robot Build Rating . | . . . . . . . Part Schematics Acquired . | . . . . . . . Parts Built . | . . . . . . . Authchips . | . . . . . . . Time . | . . . . . . . Total Part Build Rating . | . . . . . . . Parts Repaired . | . . . . . . . Time . | . . . . . . . Parts Recycled . | . . . . . . . Recycled Matter . | . . . . . . . Retrieved Matter . | . . . . . . . Retrieved Components . | . . . . . . . Parts Scanalyzed . | . . . . . . . Part Schematics Acquired . | . . . . . . . Parts Damaged . | . . . . . . . Bothacking | -11 -10 -10 -10 -9 -8 -8 ------------ Run | Scr Mat Min Exi Min Mat Sto Used RIF Installer . | . . . . . . . Robots Hacked . | . . . . . . . Non-combat . | . . . . . . . Combat . | . . . . . . . Robot Hacks Applied . | . . . . . . . Relay Couplers Released . | . . . . . . . Fabnet Peak Effective % . | . . . . . . . Robots Rewired . | . . . . . . . Allies Hacked . | . . . . . . . Hacks Repelled . | . . . . . . . Allies | -11 -10 -10 -10 -9 -8 -8 -------- Run | Scr Mat Min Exi Min Mat Sto Total Allies . | . . . . . . . Largest Group . | . . . . . . . Highest-Rated Group . | . . . . . . . Highest-Rated Ally . | . . . . . . . Total Orders . | . . . . . . . Ally Attacks . | . . . . . . . Total Damage . | . . . . . . . Kills . | . . . . . . . Allies Corrupted . | . . . . . . . Allies Melted . | . . . . . . . Intel | -11 -10 -10 -10 -9 -8 -8 ------- Run | Scr Mat Min Exi Min Mat Sto Robot Analysis Total . | . . . . . . . Derelict Logs Recovered 2 | . . 1 . 1 . . Drone Launches . | . . . . . . . Drone Recoveries . | . . . . . . . Exploration | -11 -10 -10 -10 -9 -8 -8 ------------- Run | Scr Mat Min Exi Min Mat Sto Turns Passed 3143 | . 433 338 1193 516 429 234 Spaces Moved 1416 | 1 218 188 511 203 205 90 Core . | . . . . . . . Treads 1217 | . 20 188 511 203 205 90 Legs 199 | 1 198 . . . . . Wheels . | . . . . . . . Hover . | . . . . . . . Flight . | . . . . . . . Fastest Speed 120 | 120 120 160 165 245 163 163 Average Speed 201 | 120 132 162 233 245 187 202 Slowest Speed 245 | 120 190 165 245 245 245 243 Overloaded Moves . | . . . . . . . Propulsion Burnouts . | . . . . . . . Robots Hopped . | . . . . . . . Cave-ins Triggered . | . . . . . . . Exploration Rate (%) 37 | 3 36 54 90 44 18 20 Regions Visited 6 Branch Regions 4 Pre-discovered Areas 1 | . . . 1 . . . Known Exits Taken 1 | . 1 . . . . . Unknown Exits Taken 5 | 1 . 1 1 1 1 . Scrap Searched 2 | . . 1 . 1 . . Spaces Dug . | . . . . . . . Terrain Destroyed 102 | . . 18 . 51 . 33 Melee . | . . . . . . . Projectile . | . . . . . . . AOE 102 | . . 18 . 51 . 33 Terrain Rammed . | . . . . . . . Walls Destroyed . | . . . . . . . Machines Disabled . | . . . . . . . Actions | -11 -10 -10 -10 -9 -8 -8 --------- Run | Scr Mat Min Exi Min Mat Sto Total 1616 | . 309 218 513 212 235 129 Wait 54 | . 31 11 . 2 4 6 Move 1410 | . 217 187 510 202 204 90 Hop . | . . . . . . . Pick Up 25 | . 7 3 2 . 9 4 Fast Attach 7 | . 1 . . . 1 5 Attach 7 | . . 1 . 2 3 1 Detach 2 | . . 2 . . . . Swap 25 | . 12 3 1 1 4 4 Drop 30 | . 12 7 . . 3 8 Fire 56 | . 29 4 . 5 7 11 Melee . | . . . . . . . Ram . | . . . . . . . Kick . | . . . . . . . Crush . | . . . . . . . Escape Stasis . | . . . . . . . Rewire . | . . . . . . . Trap . | . . . . . . . Miscellaneous . | . . . . . . . Route ------- -11/Scrapyard -10/Materials (discovered 2 exits: *Min x2) -10/Mines (discovered 3 exits: [*Mat x2] / *Exi) -10/Exiles -9/Mines -8/Materials (discovered 3 exits: Fac x2 / *Sto) -8/Storage History --------- Turn | Location | Event 1 | -11/Scrapyard | Discovered new exit (range 0) 1 | -11/Scrapyard | Entered Materials 274 | -10/Materials | Identified exit to Mines 321 | -10/Materials | Build established: Mutant 434 | -10/Materials | Entered Mines 494 | -10/Mines | Discovered new exit (range 11) 501 | -10/Mines | Received a Rocket Launcher from a helpful Derelict 552 | -10/Mines | Met a Derelict who couldn't figure out how to use a Trap Extractor 676 | -10/Mines | Learned location of 1 exit from Materials 742 | -10/Mines | Discovered new exit (range 10) 761 | -10/Mines | Deemed a non-threat by the Exiles lab entrance 761 | -10/Mines | Discovered new exit (range 5) 772 | -10/Mines | Entered Exiles 810 | -10/Exiles | Met 8R-AWN 840 | -10/Exiles | Met EX-HEX 939 | -10/Exiles | Met EX-DEC 996 | -10/Exiles | Visited The Gauntlet 1382 | -10/Exiles | Learned location of Zion (-6) 1604 | -10/Exiles | Met EX-BIN 1643 | -10/Exiles | Aligned with FarCom system 1645 | -10/Exiles | Given EX-Vault access code 1704 | -10/Exiles | Opened EX-Vault 1726 | -10/Exiles | Found Chronowheel 1781 | -10/Exiles | Warned to stay clear of 0b10 Research branches 1938 | -10/Exiles | Discovered new exit (range 14) 1965 | -10/Exiles | Left Exiles lab with Chronowheel 1965 | -10/Exiles | Entered Mines 2449 | -9/Mines | Discovered new exit (range 9) 2481 | -9/Mines | Entered Materials 2481 | -8/Materials | Evolved 4 slots: Propulsion x1, Utility x2, Weapon x1 2482 | -8/Materials | Identified exit to Factory 2713 | -8/Materials | Discovered new exit (range 10) 2910 | -8/Materials | Entered Storage 3144 | -8/Storage | Self-destructed Last Messages --------------- 03114_ U-05 Engineer lays Concrete. 03115_ W-25 Informer sends out distress signal. 03116_ U-05 Engineer lays Concrete. 03118_ U-05 Engineer builds a Wall. 03118_ K-01 Serf collects debris. 03118_ U-05 Engineer lays Concrete. 03122_ K-01 Serf collects debris. 03122_ U-05 Engineer lays Concrete. 03125_ U-05 Engineer builds a Wall. 03128_ K-01 Serf collects debris. 03130_ U-05 Engineer builds a Wall. 03130_ K-01 Serf collects debris. 03130_ U-05 Engineer lays Concrete. 03132_ K-01 Serf collects debris. 03132_ U-05 Engineer lays Concrete. 03134_ U-05 Engineer builds a Wall. 03136_ W-25 Informer sends out distress signal. 03138_ U-05 Engineer builds a Wall. 03142_ K-01 Serf collects debris. 03143_ U-05 Engineer lays Concrete. Map ----- +----------------------------------------------------+ | | | | | ????????????????????????????????? | | ????????????????????????????????? | | ????????????????????????????????? | | ????????????????????????????????? | | ????????????????????????????????? | | ????????????????????????????????? | | ????????????????????????????????? | | ????????????????????????????????? | | ????????????????????????????????? | | ????????????????????????????????? | | ????????????????????????????????? | | ????????????????????????????????? | | ????????????????????????????????? | | ????????????????????????????????? | | ????????????????????????????????? | | ?????????????????######?????????? | | ???????????Y????? ?????????? | | ????????????????? ag?????????? | | ?????????????????# #??????????? | | ???############### #??????????? | | ???# T # #??????????? | | ???# """ """ # =###"##?????? | | ???# """ """ # !%##! !#?????? | | ???# @""" """ [=*# ! !#?????? | | ???# g !%%#=! !#?????? | | ???# %=# ! !#?????? | | ?Y?######+###### ku # ##??????? | | ???????????????# w # #???????? | | ????????o??????# # ##???????? | | ???????????????# # #????????? | | ???????????????### #????????? | | ??????????Y?????# ###????????? | | ????????????????## #??????????? | | ?????????????????# #????"""???? | | ?????????????????# #????"T"???? | | ?????????????????# #??????????? | | ???????? ??????# #?"""???"??? | | ???????# ??????# #?"""???T??? | | ???????+ ??????# + """???"??? | | ???????# ??????# # ????????? | | ???????# ??????# # ???????? | | ???????# ??????# +? ??????? | | ???????# #?????# #?? ?????? | | ???????# #?????# #???###????? | | ???????# #?????#a #??????????? | | ???????# #?????# #??????????? | | ???????# #######% #??????????? | | ???????# #??????????? | +----------------------------------------------------+ Best States ------------- Heat Dissipation 41 Energy Generation 12 Energy Capacity 265 Matter Stores 421 Matter Capacity 500 Sight Range 16 Terrain Scan Density 10 Armor Coverage 225 Evasion (%) 55 Recoil Reduction 3 Item Schematics ----------------- None Robot Schematics ------------------ None Fabricated ------------ Nothing Alien Tech Used ----------------- None Achievements -------------- None Challenges ------------ None Game ------ Seed AntimatterPhaseInterpreter Manual? 0 Play Time 00:27:01 Cumulative 247.7 hours Start 2022.08.18 @ 21:20:47 End 2022.08.18 @ 21:53:30 Sessions 1 Manual Loads 0 Difficulty Rogue Special Mode None Game No. 564 Rogue 564 Adventurer 0 Explorer 0 Win Type - Total 5 Types 4/0/0/1/0/0/0/0/0 Lore% 58 Gallery% 61 Achievement% 56 Wizard Run 0 Options --------- ASCII 0 Keyboard 0 Movement Numpad Keybinds 0 Fullscreen 1 Font 16/SmallcapsGlow Map View 75x55 Tactical HUD 1 Map Filters NONE Filters NONE Steam 1 RUN: 382af53e-9a1a-44fc-9fa1-ba1798ed2785